Cogmind - Beta 13 @@@ ROGUE MODE // 2024.04.10 @ 16:15:42 Player: Evilsquid Result: Destroyed by 9T-JPA(R) with Subdweller Laser Performance ------------- Evolutions (0) 0 Regions Visited (2) 400 Robots Destroyed (29) 145 Value Destroyed (422) 422 Prototype IDs (0) 0 Alien Tech Used (0) 0 Bonus (0) 0 TOTAL SCORE: 967 Bonus ------- None Cogmind --------- Core Integrity 0/250 Matter 157/300 Energy 250/250 System Corruption 0% Temperature Cool (6) Movement Rolling (295) Ox13 Location -10/Subcaves Parts ------- > --- POWER (1) -------- Ion Engine > --- PROPULSION (2) --- Compact Wheel > --- UTILITY (2) ------ Humpback > --- WEAPON (2) ------- Improved Light Cannon Improved Light Cannon > --- INVENTORY (35) --- Ion Engine Light Ion Engine Light Ion Engine Light Treads Compact Wheel Disposable Heat Sink High-capacity Storage Unit Huge Storage Unit Huge Storage Unit Subdweller Optics Improved Terrain Scanner Targeting Computer Improved Targeting Computer Improved Targeting Computer Improved Targeting Computer Shield Generator Shield Generator Tractor Beam Light Cannon Light Cannon Light Cannon Light Cannon Light Cannon Improved Light Cannon Improved Light Cannon Mini Grenade Launcher Scrap Shield Fragment (48) Peak State ------------ > --- POWER ------------ Ion Engine > --- PROPULSION ------- Light Treads Light Treads > --- UTILITY ---------- Huge Storage Unit Visual Processing Unit > --- WEAPON ----------- Improved Light Cannon Improved Light Cannon > --- INVENTORY -------- Light Ion Engine Light Ion Engine High-capacity Storage Unit Huge Storage Unit Targeting Computer Improved Targeting Computer Improved Targeting Computer Improved Targeting Computer Shield Generator Shield Generator Tractor Beam Light Cannon Light Cannon Light Cannon Light Cannon Light Cannon Improved Light Cannon Improved Light Cannon Mini Grenade Launcher Mini Grenade Launcher Mining Laser [Rating: 13] Favorites ----------- Power Ion Engine Engine Ion Engine Propulsion Light Treads Treads Light Treads Wheel Wheel Utility Visual Processing Unit Device Improved Terrain Scanner Storage Huge Storage Unit Processor Visual Processing Unit Weapon Improved Light Cannon Ballistic Gun Light Assault Rifle Ballistic Cannon Improved Light Cannon Build | -11 -10 -10 ------- Run | Yrd Mat Sub Slots Evolved . | . . . Power . | . . . Propulsion . | . . . Utility . | . . . Weapon . | . . . Parts Attached 22 | 7 12 3 Power 3 | 1 2 . Engine 3 | 1 2 . Core . | . . . Reactor . | . . . Propulsion 5 | 2 1 2 Treads 3 | 2 1 . Leg . | . . . Wheel 2 | . . 2 Hover . | . . . Flight . | . . . Utility 8 | 2 5 1 Device 1 | 1 . . Storage 5 | 1 3 1 Processor 2 | . 2 . Hackware . | . . . Protection . | . . . Artifact . | . . . Weapon 6 | 2 4 . Energy Gun . | . . . Energy Cannon . | . . . Ballistic Gun 2 | 2 . . Ballistic Cannon 4 | . 4 . Launcher . | . . . Special Weapon . | . . . Impact Weapon . | . . . Slashing Weapon . | . . . Piercing Weapon . | . . . Special Melee Weapon . | . . . Unidentified Prototypes . | . . . Parts Lost 2 | . . 2 Power . | . . . Propulsion 2 | . . 2 Utility . | . . . Weapon . | . . . Highest Loss Streak 1 | . . 1 To Critical Strikes . | . . . Average Slot Usage (%) 98 | . 99 90 Engine 14 | . 14 14 Treads 26 | . 27 13 Wheel 1 | . . 12 Storage 14 | . 14 14 Processor 12 | . 13 7 Ballistic Cannon 27 | . 27 28 Naked Turns . | . . . Heaviest Build 213 | 13 93 213 Greatest Support 40 | 40 40 40 Greatest Overweight (x) 21 | . 2 21 Average Overweight (x) 1 | . 1 6 Largest Inventory Capacity 35 | 8 25 35 Average Capacity 21 | 7 21 29 Most Carried 27 | 5 25 27 Average Carried 17 | 3 18 21 Final Capacity 35 | 8 25 35 Final Carried 27 | 5 25 27 Class Distribution -------------------- 94% | Mutant 5% | Hauler-Mutant Dominant Class ---------------- Mutant | -10/Materials Hauler-Mutant | -10/Subcaves Resources | -11 -10 -10 ----------- Run | Yrd Mat Sub Matter Collected 756 | 254 469 33 Remotely . | . . . Salvage Created 551 | 129 413 9 Parts 53 | 9 42 2 Haulers Intercepted 2 | . 2 . Recyclers Shooed 2 | . 2 . Parts Field Recycled . | . . . Retrieved Matter . | . . . Parts Self-Destructed 1 | . . 1 Prevented . | . . . Kills | -11 -10 -10 ------- Run | Yrd Mat Sub Combat Hostiles Destroyed 15 | . 12 3 Cannons 15 | . 12 3 Classes Destroyed 8 | 2 5 1 Worker 2 | . 2 . Tunneler 4 | 3 1 . Hauler 2 | . 2 . Recycler 3 | 1 2 . Watcher 3 | . 3 . Swarmer 9 | . 9 . Grunt 3 | . 3 . Subdweller 3 | . . 3 Best Kill Streak 4 | 2 4 2 Combat Bots Only 3 | . 3 2 Max Kills in Single Turn 1 | 1 1 1 Gunslinging . | . . . Exploded . | . . . Melee . | . . . Uniques/NPCs Destroyed . | . . . Combat | -11 -10 -10 -------- Run | Yrd Mat Sub Hostile Shots Fired 83 | . 61 22 Missed 18 | . 14 4 Damage Taken 958 | . 598 360 Core 256 | . 170 86 Absorbed by Shields . | . . . Core Remaining (%) 100 | 100 . . Volleys Fired 76 | 14 45 17 Largest 2 | 2 2 2 Hottest 78 | 40 78 78 Shots Fired 152 | 28 90 34 Gun 28 | 28 . . Cannon 124 | . 90 34 Launcher . | . . . Special . | . . . Kinetic 152 | 28 90 34 Thermal . | . . . Explosive . | . . . Electromagnetic . | . . . Robot Hit Streak 22 | 3 8 22 Robot Miss Streak 4 | 2 4 1 Penetration Max . | . . . Secondary Targets . | . . . Shots Hit Robots 95 | 15 48 32 Core Hits 33 | 7 21 5 Critical Kills . | . . . Critical Parts Destroyed . | . . . Critical Strikes 5 | . 3 2 Blast 5 | . 3 2 Melee Attacks . | . . . Impact . | . . . Slashing . | . . . Piercing . | . . . Sneak Attacks . | . . . Combat Hostiles . | . . . Follow-up Attacks . | . . . Damage Inflicted 1830 | 131 1056 643 Guns 131 | 131 . . Cannons 1634 | . 991 643 Explosions . | . . . Melee . | . . . Ramming 65 | . 65 . Kinetic 1765 | 131 991 643 Thermal . | . . . Explosive . | . . . Electromagnetic . | . . . Impact . | . . . Slashing . | . . . Piercing . | . . . Highest Corruption . | . . . Average Corruption . | . . . Corruption Purged . | . . . Corruption Blocked . | . . . Overload Shots . | . . . Overflow Damage 16 | . 16 . Projectiles 16 | . 16 . Explosions . | . . . Melee . | . . . Knockbacks 16 | . 13 3 Impact . | . . . Kinetic 15 | . 12 3 Secondary 1 | . 1 . Self-Inflicted Damage . | . . . Shots . | . . . Rammed 9 | . 9 . Targets Rammed 10 | . 10 . Kicked . | . . . Crushed 1 | . 1 . Highest Temperature 168 | . 168 . Average Temperature 46 | . 46 . Received Heat Transfer 108 | . 60 48 Siege Activations . | . . . Robots Corrupted . | . . . Combat Hostiles . | . . . Parts Fried . | . . . Impact Corruptions . | . . . Robots Melted . | . . . Combat Hostiles . | . . . Parts Melted . | . . . Heat Transferred . | . . . Parts Sabotaged . | . . . Parts Stolen . | . . . Parts Stripped . | . . . Power Chain Reactions . | . . . Alert | -11 -10 -10 ------- Run | Yrd Mat Sub Peak Influence 129 | 20 129 . Initial 13 | . 13 . Average 44 | 10 46 . Maximum Alert Level . | . . . Low Security (%) 100 | 100 100 . Level 1 . | . . . Level 2 . | . . . Level 3 . | . . . Level 4 . | . . . Level 5 . | . . . High Security . | . . . Max Security . | . . . Squads Dispatched 2 | . 2 . Investigation 1 | . 1 . Extermination . | . . . Reinforcement 1 | . 1 . Assault . | . . . Garrison . | . . . Intercept . | . . . Searches Triggered . | . . . Construction Impeded . | . . . Haulers Reinforced . | . . . Active Scanning Responses . | . . . Cargo Convoy Interrupts . | . . . Stealth | -11 -10 -10 --------- Run | Yrd Mat Sub Distress Signals 1 | . 1 . Communications Jammed . | . . . Distress Signals . | . . . Times Spotted 21 | . 17 4 Peak Tracking Total 3 | . 3 2 Tactical Retreats 1 | . 1 . Traps | -11 -10 -10 ------- Run | Yrd Mat Sub Traps Triggered 2 | . 2 . Indirectly . | . . . Trap Hack Attempts . | . . . Triggered . | . . . Disarmed . | . . . Reprogrammed . | . . . Reused . | . . . Traps Extracted . | . . . Installed . | . . . Triggered . | . . . Machines | -11 -10 -10 ---------- Run | Yrd Mat Sub Machines Disabled 1 | . 1 . Max in Single Turn 1 | . 1 . Machines Repaired . | . . . Machines Dismantled . | . . . Machines Sabotaged . | . . . Overloaded Fab Kills . | . . . Hacking | -11 -10 -10 --------- Run | Yrd Mat Sub Machines Accessed 1 | . 1 . Terminals . | . . . Fabricators . | . . . Repair Stations 1 | . 1 . Recycling Units . | . . . Scanalyzers . | . . . Garrison Access . | . . . Total Hacks 3 | . 3 . Successful 1 | . 1 . Failed 2 | . 2 . Catastrophic . | . . . Database Lockouts . | . . . Manual . | . . . Terminals . | . . . Fabricators . | . . . Repair Stations 3 | . 3 . Recycling Units . | . . . Scanalyzers . | . . . Garrison Access . | . . . Terminal Hacks . | . . . Fabricator Hacks . | . . . Repair Station Hacks 1 | . 1 . Scan Component 1 | . 1 . Recycling Unit Hacks . | . . . Scanalyzer . | . . . Garrison Access Hacks . | . . . Unauthorized Hacks . | . . . Terminals . | . . . Fabricators . | . . . Repair Stations . | . . . Recycling Units . | . . . Scanalyzers . | . . . Garrison Access . | . . . Data Cores Recovered . | . . . Used . | . . . Hacking Detections 1 | . 1 . Full Trace Events . | . . . Feedback Events . | . . . Feedback Blocked . | . . . Robot Schematics Acquired . | . . . Robots Built . | . . . Authchips . | . . . Time . | . . . Total Robot Build Rating . | . . . Part Schematics Acquired . | . . . Parts Built . | . . . Authchips . | . . . Time . | . . . Total Part Build Rating . | . . . Parts Repaired . | . . . Time . | . . . Parts Recycled . | . . . Recycled Matter . | . . . Retrieved Matter . | . . . Retrieved Components . | . . . Parts Scanalyzed . | . . . Part Schematics Acquired . | . . . Parts Damaged . | . . . Bothacking | -11 -10 -10 ------------ Run | Yrd Mat Sub Used RIF Installer . | . . . Robots Hacked . | . . . Non-combat . | . . . Combat . | . . . Robot Hacks Applied . | . . . Relay Couplers Released . | . . . Fabnet Peak Effective % . | . . . Robots Rewired . | . . . Allies Hacked . | . . . Hacks Repelled . | . . . Allies | -11 -10 -10 -------- Run | Yrd Mat Sub Total Allies . | . . . Largest Group . | . . . Highest-Rated Group . | . . . Highest-Rated Ally . | . . . Total Orders . | . . . Ally Attacks . | . . . Total Damage . | . . . Kills . | . . . Allies Corrupted . | . . . Allies Melted . | . . . Intel | -11 -10 -10 ------- Run | Yrd Mat Sub Robot Analysis Total . | . . . Derelict Logs Recovered . | . . . Drone Launches . | . . . Drone Recoveries . | . . . Exploration | -11 -10 -10 ------------- Run | Yrd Mat Sub Turns Passed 3257 | 213 2670 374 Spaces Moved 1103 | 104 898 101 Core 4 | 4 . . Treads 1043 | 100 898 45 Legs . | . . . Wheels 56 | . . 56 Hover . | . . . Flight . | . . . Fastest Speed 50 | 50 160 210 Average Speed 238 | 155 242 289 Slowest Speed 480 | 160 320 480 Overloaded Moves . | . . . Propulsion Burnouts . | . . . Robots Hopped . | . . . Cave-ins Triggered . | . . . Exploration Rate (%) 36 | 6 98 6 Regions Visited 2 Branch Regions 1 Pre-discovered Areas . | . . . Known Exits Taken . | . . . Unknown Exits Taken 2 | 1 1 . Scrap Searched . | . . . Spaces Dug . | . . . Terrain Destroyed 4 | . 4 . Melee . | . . . Projectile 4 | . 4 . AOE . | . . . Terrain Rammed . | . . . Walls Destroyed . | . . . Machines Disabled . | . . . Actions | -11 -10 -10 --------- Run | Yrd Mat Sub Total 1573 | 129 1294 150 Wait 289 | . 284 5 Move 1101 | 103 897 101 Hop . | . . . Pick Up 56 | 5 29 22 Fast Attach 14 | 7 6 1 Attach 2 | . 1 1 Detach 2 | . 1 1 Swap 6 | . 5 1 Drop 17 | . 16 1 Fire 76 | 14 45 17 Melee . | . . . Ram . | . . . Kick . | . . . Crush 10 | . 10 . Escape Stasis . | . . . Rewire . | . . . Trap . | . . . Miscellaneous . | . . . Route ------- -11/Scrapyard -10/Materials (discovered 5 exits: [*Mat x3] / [*Min] / [*Sub]) -10/Subcaves (discovered 1 exit: [*Mat]) History --------- Turn | Location | Event 34 | -11/Scrapyard | Discovered new exit (range 16) 214 | -11/Scrapyard | Entered Materials 301 | -10/Materials | Build established: Mutant 894 | -10/Materials | Discovered new exit (range 9) 1203 | -10/Materials | Discovered new exit (range 8) 1364 | -10/Materials | Discovered new exit (range 11) 1365 | -10/Materials | Core integrity fell below 50% 1948 | -10/Materials | Discovered new exit (range 14) 2552 | -10/Materials | Discovered new exit (range 4) 2884 | -10/Materials | Entered Subcaves 2952 | -10/Subcaves | Discovered new exit (range 8) 3190 | -10/Subcaves | Core integrity fell below 20% 3258 | -10/Subcaves | Destroyed by 9T-JPA(R) with Subdweller Laser Last Messages --------------- 03146_ Acquired Imp. Terrain Scanner. 03149_ Subatomizers dissect the Disposable Heat Sink. 03154_ Acquired Imp. Targeting Computer. 03157_ Acquired Mni. Grenade Launcher. 03160_ Acquired Hcp. Storage Unit. 03167_ Acquired Imp. Targeting Computer. 03172_ Acquired Lgt. Cannon. 03174_ Subatomizers dissect the Disposable Heat Sink. 03199_ 4A-NT4(R) destroyed. 03206_ Acquired Shield Generator. 03209_ Acquired Sub. Optics. 03210_ Subatomizers dissect the Disposable Heat Sink. 03212_ Acquired Disposable Heat Sink. 03217_ Acquired Scrap Shield Fragment. 03223_ Acquired 3 matter. 03225_ Acquired 6 matter. 03227_ Acquired 8 matter. 03251_ 9T-JPA(R) knocked back. 03252_ Wheel destroyed. 03257_ 9T-JPA(R) knocked back. Map ----- +----------------------------------------------------+ | ???????????????????????????????????????????????? | | ?###???????????????????????????????????????????? | | ? #??????????????????????????????????????????? | | # ??????????????????????????????????????????? | | # #??????????????????????????????????????????? | | #?####?????????????????????????????????????? | | ### ?????????????????????????????????????? | | # ## #?????????????????????????????????????? | | #?????????????????????????????????????? | | # # #?????????????????????????????????????? | | # #?????????????????????????????????????? | | #?????????????????????????????????????? | | #????####?????????????????????????????? | | ## ### ##??## ###?# ????????????????????????? | | ### # # #### "##""????????????????????????? | | """" ???????????????????????? | | # """" ???????? """???????????? | | # # ""#???????#" """????????????? | | ##### ## ####???????"""" ?????????????? | | #???##### ####?????? "" ??????????????? | | # ###???????# %##?????"" #???????????????? | | ####?????????## ######" "##??????????????? | | ??????????????### < %#%R# # ""#??????????????? | | ????????????????#" %" %" ""#??????????????? | | ????????????????#""" "%| "##??????????????? | | ????????????????##""#####@ ## "#???????????????? | | ?????????????????####???#####?####???????????????? | | ?????????????????????????????????????????????????? | | ?????????????????????????????????????????????????? | | ?????????????????????????????????????????????????? | | ?????????????????????????????????????????????????? | | ?????????????????????????????????????????????????? | | ?????????????????????????????????????????????????? | | ?????????????????????????????????????????????????? | | ?????????????????????????????????????????????????? | | ?????????????????????????????????????????????????? | | ?????????????????????????????????????????????????? | | ?????????????????????????????????????????????????? | | ?????????????????????????????????????????????????? | | ?????????????????????????????????????????????????? | | ?????????????????????????????????????????????????? | | | | | | | | | | | | | | | | | | | +----------------------------------------------------+ Best States ------------- Heat Dissipation 25 Energy Generation 10 Energy Capacity 250 Matter Stores 300 Matter Capacity 300 Sight Range 18 Terrain Scan Range 16 Terrain Scan Density 10 Evasion (%) 40 Targeting Accuracy 6 Recoil Reduction 2 Item Schematics ----------------- None Robot Schematics ------------------ None Fabricated ------------ Nothing Alien Tech Used ----------------- None Achievements -------------- None Challenges ------------ None Game ------ Seed ImpactPropulsionScythe Manual? 0 Play Time 00:12:35 Cumulative 68.4 hours Start 2024.04.10 @ 15:57:14 End 2024.04.10 @ 16:15:42 Sessions 1 Manual Loads 0 Difficulty Rogue Special Mode None Game No. 65 Rogue 65 Adventurer 0 Explorer 0 Win Type - Total 1 Types 1/0/0/0/0/0/0/0/0 Lore% 30 Gallery% 44 Achievement% 40 Wizard Run 0 Options --------- Layout 0 ASCII 0 Keyboard 1 Movement Numpad Keybinds 0 Fullscreen 2 Font 24/Smallcaps Map View 76x50 Zoom Use 0% Tactical HUD 1 Map Filters NONE Filters NONE Steam 1 RUN: 3bc79bff-f1c3-4340-8680-9046cf488846